fUST/lending_fUST_20250602
["ID","MTS","AMOUNT","RATE_DAILY","PERIOD"]
[363759040,1748863833243,-430.0,0.00016592,2]
[363759041,1748863833253,-430.0,0.00016592,2]
[363759044,1748863833264,-420.0,0.00016592,2]
[363759045,1748863833274,-423.60160173,0.00016592,2]
[363759048,1748863833285,-430.0,0.00016592,2]
[363759050,1748863833295,-412.83904458,0.00016592,2]
[363759051,1748863833305,-430.0,0.00016592,2]
[363759053,1748863833315,-430.0,0.00016592,2]
[363759055,1748863833327,-498.87,0.00016592,2]
[363759057,1748863833338,-400.0,0.00016592,2]
[363759060,1748863833349,-430.0,0.00016592,2]
[363759062,1748863833360,-430.0,0.00016592,2]
[363759064,1748863833370,-500.0,0.00016592,2]
[363759065,1748863833380,-430.0,0.00016592,2]
[363759067,1748863833390,-570.62,0.00016592,2]
[363759070,1748863833400,-423.08,0.00016592,2]
[363759071,1748863833410,-430.0,0.00016592,2]
[363759073,1748863833419,-401.82318136,0.00016592,2]
[363759075,1748863833430,-516.99042476,0.00016592,2]
[363759077,1748863833439,-430.0,0.00016592,2]
[363759079,1748863833448,-430.0,0.00016592,2]
[363759081,1748863833458,-400.0,0.00016592,2]
[363759083,1748863833468,-430.0,0.00016592,2]
[363759085,1748863833478,-450.0,0.00016592,2]
[363759087,1748863833489,-430.0,0.00016592,2]
[363759089,1748863833499,-430.0,0.00016592,2]
[363759091,1748863833509,-432.00097275,0.00016592,2]
[363759093,1748863833519,-450.0,0.00016592,2]
[363759095,1748863833529,-430.0,0.00016592,2]
[363759097,1748863833539,-450.0,0.00016592,2]
[363759100,1748863833549,-430.0,0.00016592,2]
[363759102,1748863833559,-427.87386933,0.00016592,2]
[363759104,1748863833569,-400.0,0.00016592,2]
[363759106,1748863833580,-504.69,0.00016592,2]
[363759108,1748863833590,-430.0,0.00016592,2]
[363759110,1748863833600,-430.0,0.00016592,2]
[363759112,1748863833610,-430.0,0.00016592,2]
[363759114,1748863833621,-430.0,0.00016592,2]
[363759116,1748863833631,-430.0,0.00016592,2]
[363759118,1748863833641,-430.0,0.00016592,2]
[363759120,1748863833651,-430.0,0.00016592,2]
[363759122,1748863833661,-430.0,0.00016592,2]
[363759124,1748863833670,-400.0,0.00016592,2]
[363759126,1748863833680,-430.0,0.00016592,2]
[363759128,1748863833690,-430.0,0.00016592,2]
[363759130,1748863833700,-430.0,0.00016592,2]
[363759132,1748863833709,-430.0,0.00016592,2]
[363759134,1748863833718,-430.0,0.00016592,2]
[363759136,1748863833727,-327.67,0.00016592,2]
[363759138,1748863833737,-430.0,0.00016592,2]
[363759140,1748863833746,-400.0,0.00016592,2]
[363759142,1748863833756,-430.0,0.00016592,2]
[363759144,1748863833765,-400.0,0.00016592,2]
[363759146,1748863833775,-430.0,0.00016592,2]
[363759148,1748863833784,-433.9972452,0.00016592,2]
[363759150,1748863833794,-430.0,0.00016592,2]
[363759152,1748863833803,-400.0,0.00016592,2]
[363759154,1748863833812,-430.0,0.00016592,2]
[363759156,1748863833821,-430.0,0.00016592,2]
[363759158,1748863833829,-430.0,0.00016592,2]
[363759160,1748863833838,-430.0,0.00016592,2]
[363759162,1748863833847,-400.0,0.00016592,2]
[363759164,1748863833855,-456.66,0.00016592,2]
[363759166,1748863833865,-430.0,0.00016592,2]
[363759168,1748863833872,-430.0,0.00016592,2]
[363759169,1748863833880,-450.0,0.00016592,2]
[363759171,1748863833889,-400.0,0.00016592,2]
[363759174,1748863833899,-430.0,0.00016592,2]
[363759176,1748863833909,-311.18,0.00016592,2]
[363759178,1748863833917,-430.0,0.00016592,2]
[363759180,1748863833927,-430.0,0.00016592,2]
[363759182,1748863833935,-430.0,0.00016592,2]
[363759184,1748863833944,-430.0,0.00016592,2]
[363759186,1748863833953,-430.0,0.00016592,2]
[363759188,1748863833962,-430.0,0.00016592,2]
[363759190,1748863833971,-1553.33,0.00016592,2]
[363759192,1748863833981,-430.0,0.00016592,2]
[363759194,1748863833991,-430.0,0.00016592,2]
[363759196,1748863834001,-430.0,0.00016592,2]
[363759198,1748863834012,-430.0,0.00016592,2]
[363759200,1748863834021,-430.0,0.00016592,2]
[363759202,1748863834031,-430.0,0.00016592,2]
[363759204,1748863834041,-430.0,0.00016592,2]
[363759206,1748863834051,-430.0,0.00016592,2]
[363759208,1748863834061,-676.42,0.00016592,2]
[363759210,1748863834072,-430.0,0.00016592,2]
[363759212,1748863834083,-430.0,0.00016592,2]
[363759214,1748863834093,-430.0,0.00016592,2]
[363759216,1748863834104,-450.0,0.00016592,2]
[363759218,1748863834114,-430.0,0.00016592,2]
[363759220,1748863834124,-430.0,0.00016592,2]
[363759222,1748863834135,-430.0,0.00016592,2]
[363759224,1748863834145,-430.0,0.00016592,2]
[363759226,1748863834155,-430.0,0.00016592,2]
[363759228,1748863834165,-420.0,0.00016592,2]
[363759230,1748863834175,-430.0,0.00016592,2]
[363759232,1748863834185,-430.0,0.00016592,2]
[363759234,1748863834195,-430.0,0.00016592,2]
[363759236,1748863834206,-430.0,0.00016592,2]
[363759238,1748863834216,-430.0,0.00016592,2]
[363759240,1748863834226,-491.06,0.00016592,2]
[363759242,1748863834238,-430.0,0.00016592,2]
[363759244,1748863834251,-470.0,0.00016592,2]
[363759246,1748863834262,-430.0,0.00016592,2]
[363759248,1748863834272,-430.0,0.00016592,2]
[363759251,1748863834283,-430.0,0.00016592,2]
[363759253,1748863834294,-430.0,0.00016592,2]
[363759255,1748863834304,-430.0,0.00016592,2]
[363759257,1748863834314,-430.0,0.00016592,2]
[363759259,1748863834326,-692.15,0.00016592,2]
[363759261,1748863834336,-430.0,0.00016592,2]
[363759263,1748863834347,-477.72,0.00016592,2]
[363759265,1748863834356,-430.0,0.00016592,2]
[363759267,1748863834365,-430.0,0.00016592,2]
[363759269,1748863834376,-430.0,0.00016592,2]
[363759271,1748863834386,-541.81892531,0.00016592,2]
[363759273,1748863834396,-430.0,0.00016592,2]
[363759274,1748863834406,-470.0,0.00016592,2]
[363759276,1748863834416,-430.0,0.00016592,2]
[363759278,1748863834426,-430.0,0.00016592,2]
[363759280,1748863834435,-430.0,0.00016592,2]
[363759282,1748863834445,-430.0,0.00016592,2]
[363759284,1748863834455,-1463.25,0.00016592,2]
[363759286,1748863834464,-430.0,0.00016592,2]
[363759288,1748863834473,-430.0,0.00016592,2]
[363759290,1748863834484,-430.0,0.00016592,2]
[363759292,1748863834494,-430.0,0.00016592,2]
[363759294,1748863834503,-430.0,0.00016592,2]
[363759296,1748863834512,-430.0,0.00016592,2]
[363759298,1748863834523,-430.0,0.00016592,2]
[363759301,1748863834532,-611.52,0.00016592,2]
[363759303,1748863834541,-430.0,0.00016592,2]
[363759305,1748863834551,-3822.18,0.00016592,2]
[363759307,1748863834559,-377.2372379,0.00016592,2]
[363759308,1748863834568,-430.0,0.00016592,2]
[363759310,1748863834577,-430.0,0.00016592,2]
[363759312,1748863834587,-434.04048788,0.00016593,2]
[363759314,1748863834597,-431.30683305,0.00016593,2]
[363759316,1748863834606,-439.56809522,0.00016593,2]
[363759318,1748863834616,-436.54738239,0.00016593,2]
[363759320,1748863834626,-443.45311406,0.00016593,2]
[363759322,1748863834636,-442.44938534,0.00016593,2]
[363759325,1748863834646,-430.0,0.00016593,2]
[363759327,1748863834656,-440.79405161,0.00016593,2]
[363759329,1748863834666,-430.0,0.00016593,2]
[363759331,1748863834676,-430.0,0.00016593,2]
[363759333,1748863834685,-430.94314449,0.00016593,2]
[363759335,1748863834694,-433.71951333,0.00016593,2]
[363759337,1748863834704,-461.26903537,0.00016593,2]
[363759339,1748863834713,-430.0,0.00016593,2]
[363759341,1748863834723,-517.30196012,0.00016593,2]
[363759343,1748863834732,-430.0,0.00016593,2]
[363759344,1748863834741,-430.0,0.00016593,2]
[363759346,1748863834750,-270.0,0.00016593,2]
[363759348,1748863834760,-270.0,0.00016593,2]
[363759350,1748863834769,-430.0,0.00016593,2]
[363759352,1748863834779,-311.72960514,0.00016593,2]
[363759354,1748863834789,-270.0,0.00016593,2]
[363759356,1748863834798,-430.0,0.00016593,2]
[363759359,1748863834808,-430.0,0.00016593,2]
[363759360,1748863834817,-430.0,0.00016593,2]
[363759362,1748863834827,-430.0,0.00016593,2]
[363759364,1748863834836,-325.77514038,0.00016593,2]
[363759366,1748863834845,-430.0,0.00016593,2]
[363759368,1748863834854,-430.0,0.00016593,2]
[363759370,1748863834863,-400.0,0.00016593,2]
[363759372,1748863834873,-270.0,0.00016593,2]
[363759374,1748863834884,-430.0,0.00016593,2]
[363759377,1748863834903,-416.55345608,0.00016593,2]
[363759379,1748863834912,-472.80336111,0.00016593,2]
[363759381,1748863834923,-482.03,0.00016593,2]
[363759382,1748863834933,-573.11054817,0.00016593,2]
[363759383,1748863834943,-430.0,0.00016593,2]
[363759384,1748863834953,-401.06812258,0.00016593,2]
[363759385,1748863834963,-400.0,0.00016593,2]
[363759386,1748863834973,-440.0,0.00016593,2]
[363759387,1748863834982,-203.5827555,0.00016593,2]
[363759388,1748863834997,-430.0,0.00016593,2]
[363759389,1748863835005,-430.0,0.00016593,2]
[363759390,1748863835016,-222.79047185,0.00016593,2]
[363759391,1748863835026,-430.0,0.00016593,2]
[363759392,1748863835035,-430.0,0.00016593,2]
[363759393,1748863835043,-450.0,0.00016593,2]
[363759394,1748863835050,-401.64367876,0.00016593,2]
[363759395,1748863835057,-400.0,0.00016593,2]
[363759396,1748863835065,-400.0,0.00016593,2]
[363759397,1748863835073,-400.0,0.00016593,2]
[363759398,1748863835083,-400.0,0.00016593,2]
[363759399,1748863835092,-400.0,0.00016593,2]
[363759400,1748863835101,-430.0,0.00016593,2]
[363759401,1748863835109,-313.15263292,0.00016593,2]
[363759402,1748863835118,-430.0,0.00016593,2]
[363759404,1748863835127,-430.0,0.00016593,2]
[363759406,1748863835135,-400.0,0.00016593,2]
[363759408,1748863835144,-404.53839224,0.00016593,2]
[363759410,1748863835152,-430.0,0.00016593,2]
[363759412,1748863835161,-400.0,0.00016593,2]
[363759414,1748863835169,-400.76608139,0.00016593,2]
[363759416,1748863835179,-450.0,0.00016593,2]
[363759418,1748863835187,-430.0,0.00016593,2]
[363759420,1748863835196,-450.0,0.00016593,2]
[363759422,1748863835205,-430.0,0.00016593,2]
[363759424,1748863835213,-445.72572788,0.00016593,2]
[363759426,1748863835221,-450.0,0.00016593,2]
[363759428,1748863835229,-330.6113405,0.00016593,2]
[363759430,1748863835238,-450.0,0.00016593,2]
[363759432,1748863835252,-430.0,0.00016593,2]
[363759434,1748863835261,-314.26926806,0.00016593,2]
[363759446,1748863835346,-500.0,0.00016593,2]
[363759448,1748863835369,-500.0,0.00016593,2]
[363759450,1748863835377,-500.0,0.00016593,2]
[363759452,1748863835387,-261.92,0.00016593,2]
[363759454,1748863835398,-430.0,0.00016593,2]
[363759456,1748863835407,-430.0,0.00016593,2]
[363759458,1748863835416,-438.57435997,0.00016593,2]
[363759460,1748863835426,-400.0,0.00016593,2]
[363759462,1748863835435,-450.0,0.00016593,2]
[363759464,1748863835445,-404.17213046,0.00016593,2]
[363759466,1748863835455,-403.63129652,0.00016593,2]
[363759468,1748863835464,-430.0,0.00016593,2]
[363759470,1748863835475,-356.66088266,0.00016593,2]
[363759472,1748863835484,-430.0,0.00016593,2]
[363759474,1748863835494,-489.79383217,0.00016593,2]
[363759476,1748863835503,-464.47531691,0.00016593,2]
[363759478,1748863835513,-353.01183693,0.00016593,2]
[363759480,1748863835523,-355.83676872,0.00016593,2]
[363759482,1748863835532,-283.79220371,0.00016593,2]
[363759484,1748863835542,-350.0,0.00016593,2]
[363759486,1748863835555,-430.0,0.00016593,2]
[363759488,1748863835566,-430.0,0.00016593,2]
[363759490,1748863835576,-450.0,0.00016593,2]
[363759492,1748863835585,-450.0,0.00016593,2]
[363759494,1748863835595,-450.0,0.00016593,2]
[363759496,1748863835604,-450.0,0.00016593,2]
[363759498,1748863835613,-450.0,0.00016593,2]
[363759500,1748863835622,-359.20198796,0.00016593,2]
[363759502,1748863835631,-450.0,0.00016593,2]
[363759504,1748863835640,-450.0,0.00016593,2]
[363759506,1748863835649,-430.0,0.00016593,2]
[363759508,1748863835658,-387.17217227,0.00016593,2]
[363759510,1748863835667,-351.41348252,0.00016593,2]
[363759512,1748863835676,-456.25081034,0.00016593,2]
[363759514,1748863835685,-430.0,0.00016593,2]
[363759516,1748863835694,-356.65821515,0.00016593,2]
[363759518,1748863835703,-430.0,0.00016593,2]
[363759520,1748863835712,-402.91113528,0.00016593,2]
[363759522,1748863835721,-507.68222954,0.00016593,2]
[363759524,1748863835730,-430.0,0.00016593,2]
[363759526,1748863835739,-430.0,0.00016593,2]
[363759528,1748863835749,-430.0,0.00016593,2]
[363759530,1748863835759,-457.51563763,0.00016593,2]
[363759532,1748863835768,-405.54795015,0.00016593,2]
[363759534,1748863835778,-430.0,0.00016593,2]
[363759536,1748863835787,-430.0,0.00016593,2]
[363759538,1748863835797,-450.0,0.00016593,2]
[363759540,1748863835807,-263.79572534,0.00016593,2]
[363759542,1748863835816,-430.0,0.00016593,2]
[363759544,1748863835826,-430.0,0.00016593,2]
[363759546,1748863835835,-430.0,0.00016593,2]
[363759548,1748863835846,-405.32454735,0.00016593,2]
[363759550,1748863835855,-461.20406607,0.00016593,2]
[363759552,1748863835864,-430.0,0.00016593,2]
[363759554,1748863835874,-551.53,0.00016593,2]
[363759556,1748863835884,-430.0,0.00016593,2]
[363759558,1748863835893,-430.0,0.00016593,2]
[363759560,1748863835902,-403.57839012,0.00016593,2]
[363759562,1748863835911,-500.0,0.00016593,2]
[363759564,1748863835921,-402.72150287,0.00016593,2]
[363759566,1748863835930,-456.54368725,0.00016593,2]
[363759568,1748863835939,-430.0,0.00016593,2]
[363759570,1748863835948,-458.58246819,0.00016593,2]
[363759572,1748863835957,-430.0,0.00016593,2]
[363759574,1748863835966,-450.0,0.00016593,2]
[363759576,1748863835974,-430.0,0.00016593,2]
[363759578,1748863835983,-400.0,0.00016593,2]
[363759580,1748863835993,-455.51962735,0.00016593,2]
[363759582,1748863836002,-451.84824957,0.00016593,2]
[363759584,1748863836011,-403.58921252,0.00016593,2]
[363759586,1748863836021,-453.78701563,0.00016593,2]
[363759588,1748863836030,-404.03720274,0.00016593,2]
[363759590,1748863836039,-450.0,0.00016593,2]
[363759592,1748863836048,-453.90236767,0.00016593,2]
[363759594,1748863836058,-457.19320164,0.00016593,2]
[363759596,1748863836067,-430.0,0.00016593,2]
[363759598,1748863836077,-452.67930473,0.00016593,2]
[363759600,1748863836086,-403.42841286,0.00016593,2]
[363759602,1748863836096,-403.69553986,0.00016593,2]
[363759604,1748863836106,-430.0,0.00016593,2]
[363759606,1748863836116,-430.0,0.00016593,2]
[363759608,1748863836126,-406.79406076,0.00016593,2]
[363759610,1748863836135,-450.0,0.00016593,2]
[363759612,1748863836145,-430.0,0.00016593,2]
[363759614,1748863836155,-450.0,0.00016593,2]
[363759616,1748863836164,-450.0,0.00016593,2]
[363759618,1748863836175,-443.79035073,0.00016593,2]
[363759620,1748863836184,-286.0233559,0.00016593,2]
[363759622,1748863836194,-430.0,0.00016593,2]
[363759624,1748863836203,-430.0,0.00016593,2]
[363759626,1748863836213,-430.0,0.00016593,2]
[363759628,1748863836222,-430.0,0.00016593,2]
[363759630,1748863836232,-431.97410424,0.00016593,2]
[363759632,1748863836244,-450.0,0.00016593,2]
[363759634,1748863836253,-420.0,0.00016593,2]
[363759636,1748863836262,-500.0,0.00016594,2]
[363759638,1748863836270,-398.1,0.00016594,2]
[363759640,1748863836281,-296.08015076,0.00016594,2]
[363759642,1748863836290,-430.0,0.00016594,2]
[363759644,1748863836299,-531.82908056,0.00016595,2]
[363759646,1748863836308,-792.94463084,0.00016766,2]
[363759648,1748863836320,-268.25270966,0.00016864,2]
[363759650,1748863836329,-450.0,0.00016865,2]
[363759652,1748863836338,-488.85,0.00016865,2]
[363759654,1748863836347,-430.0,0.00016865,2]
[363759656,1748863836356,-430.0,0.00016865,2]
[363759658,1748863836365,-430.0,0.00016865,2]
[363759660,1748863836374,-578.34,0.00016865,2]
[363759662,1748863836383,-430.0,0.00016865,2]
[363759664,1748863836391,-430.0,0.00016865,2]
[363759666,1748863836398,-430.0,0.00016865,2]
[363759668,1748863836405,-762.41,0.00016865,2]
[363759670,1748863836412,-430.0,0.00016865,2]
[363759672,1748863836420,-430.0,0.00016865,2]
[363759674,1748863836427,-430.0,0.00016865,2]
[363759676,1748863836435,-430.0,0.00016865,2]
[363759678,1748863836443,-430.0,0.00016865,2]
[363759680,1748863836453,-592.12,0.00016865,2]
[363759681,1748863836460,-430.0,0.00016865,2]
[363759683,1748863836467,-430.0,0.00016865,2]
[363759685,1748863836475,-2995.47,0.00016865,2]
[363759687,1748863836483,-1547.43,0.00016865,2]
[363759689,1748863836492,-430.0,0.00016865,2]
[363759691,1748863836501,-1137.03,0.00016865,2]
[363759693,1748863836510,-430.0,0.00016865,2]
[363759695,1748863836519,-438.83,0.00016865,2]
[363759697,1748863836529,-509.85,0.00016865,2]
[363759699,1748863836539,-1121.13,0.00016865,2]
[363759701,1748863836548,-1737.15,0.00016865,2]
[363759703,1748863836557,-430.0,0.00016866,2]
[363759705,1748863836567,-192.88,0.00016866,2]
[363759707,1748863836577,-430.0,0.00016866,2]
[363759709,1748863836586,-283.94514652,0.00016866,2]
[363759711,1748863836598,-439.23323241,0.00016866,2]
[363759714,1748863836607,-430.0,0.00016866,2]
[363759716,1748863836617,-430.0,0.00016866,2]
[363759718,1748863836627,-420.0,0.00016866,2]
[363759720,1748863836637,-430.0,0.00016866,2]
[363759722,1748863836646,-395.13487975,0.00016866,2]
[363759724,1748863836656,-430.0,0.00016866,2]
[363759726,1748863836665,-436.81009848,0.00016866,2]
[363759728,1748863836674,-430.0,0.00016866,2]
[363759729,1748863836685,-430.0,0.00016866,2]
[363759732,1748863836697,-430.0,0.00016866,2]
[363759733,1748863836706,-430.0,0.00016866,2]
[363759736,1748863836716,-430.0,0.00016866,2]
[363759738,1748863836725,-430.0,0.00016866,2]
[363759740,1748863836735,-430.0,0.00016866,2]
[363759742,1748863836744,-430.0,0.00016866,2]
[363759744,1748863836753,-430.0,0.00016866,2]
[363759746,1748863836762,-430.0,0.00016866,2]
[363759747,1748863836771,-430.0,0.00016866,2]
[363759750,1748863836781,-430.0,0.00016866,2]
[363759752,1748863836791,-430.0,0.00016866,2]
[363759754,1748863836800,-391.52853431,0.00016866,2]
[363759756,1748863836809,-430.0,0.00016866,2]
[363759757,1748863836818,-430.0,0.00016866,2]
[363759759,1748863836828,-430.0,0.00016866,2]
[363759761,1748863836837,-430.0,0.00016866,2]
[363759763,1748863836846,-430.0,0.00016866,2]
[363759766,1748863836856,-430.0,0.00016866,2]
[363759768,1748863836865,-194.3484285,0.00016866,2]
[363759770,1748863836874,-430.0,0.00016866,2]
[363759772,1748863836884,-430.0,0.00016866,2]
[363759774,1748863836893,-430.0,0.00016866,2]
[363759776,1748863836903,-430.0,0.00016866,2]
[363759777,1748863836912,-430.0,0.00016866,2]
[363759779,1748863836921,-1553.33,0.00016866,2]
[363759781,1748863836929,-430.0,0.00016866,2]
[363759783,1748863836938,-430.0,0.00016866,2]
[363759785,1748863836947,-430.0,0.00016866,2]
[363759787,1748863836956,-430.0,0.00016866,2]
[363759789,1748863836965,-430.0,0.00016866,2]
[363759791,1748863836973,-430.0,0.00016866,2]
[363759793,1748863836982,-430.0,0.00016866,2]
[363759795,1748863836991,-676.42,0.00016866,2]
[363759797,1748863836999,-455.36592827,0.00016866,2]
[363759799,1748863837008,-430.0,0.00016866,2]
[363759801,1748863837018,-430.0,0.00016866,2]
[363759803,1748863837027,-163.26146719,0.00016866,2]
[363759805,1748863837036,-252.3195849,0.00016866,2]
[363759807,1748863837045,-430.0,0.00016866,2]
[363759809,1748863837054,-430.0,0.00016866,2]
[363759811,1748863837063,-430.0,0.00016866,2]
[363759813,1748863837073,-430.0,0.00016866,2]
[363759816,1748863837083,-430.0,0.00016866,2]
[363759818,1748863837092,-491.06,0.00016866,2]
[363759819,1748863837102,-430.0,0.00016866,2]
[363759821,1748863837111,-430.0,0.00016866,2]
[363759823,1748863837121,-430.0,0.00016866,2]
[363759826,1748863837131,-430.0,0.00016866,2]
[363759828,1748863837140,-430.0,0.00016866,2]
[363759830,1748863837151,-692.15,0.00016866,2]
[363759832,1748863837160,-513.01547072,0.00016866,2]
[363759834,1748863837170,-477.72,0.00016866,2]
[363759836,1748863837180,-430.0,0.00016866,2]
[363759838,1748863837189,-408.66051867,0.00016866,2]
[363759840,1748863837199,-430.0,0.00016866,2]
[363759842,1748863837208,-430.0,0.00016866,2]
[363759844,1748863837218,-430.0,0.00016866,2]
[363759846,1748863837227,-1463.25,0.00016866,2]
[363759848,1748863837236,-169.84822574,0.00016866,2]
[363759850,1748863837250,-430.0,0.00016866,2]
[363759852,1748863837259,-430.0,0.00016866,2]
[363759854,1748863837269,-430.0,0.00016866,2]
[363759856,1748863837278,-430.0,0.00016866,2]
[363759858,1748863837290,-430.0,0.00016866,2]
[363759860,1748863837299,-611.52,0.00016866,2]
[363759862,1748863837308,-430.0,0.00016866,2]
[363759864,1748863837318,-3822.18,0.00016866,2]
[363759866,1748863837328,-329.45906706,0.00016866,2]
[363759962,1748863838238,-167.31844685,0.00016492,2]
[363759964,1748863838250,-162.9234056,0.00016591,2]
[363759966,1748863838260,-430.0,0.00016592,2]
[363759968,1748863838270,-106.93545343,0.00016866,2]
[363759970,1748863838279,-439.28298965,0.00016866,2]
[363759972,1748863838290,-430.0,0.00016867,2]
[363759974,1748863838299,-499.52861066,0.00016867,2]
[363759976,1748863838309,-440.99897825,0.00016867,2]
[363759978,1748863838319,-430.0,0.00016867,2]
[363759980,1748863838329,-430.0,0.00016867,2]
[363759982,1748863838338,-480.99474585,0.00016867,2]
[363759984,1748863838348,-482.92467687,0.00016867,2]
[363759986,1748863838358,-430.0,0.00016867,2]
[363759988,1748863838367,-53.78409979,0.00016867,2]
[363759993,1748863838398,-381.88690454,0.00016867,2]
[363759995,1748863838409,-430.0,0.00016867,2]
[363759997,1748863838418,-430.0,0.00016867,2]
[363759999,1748863838427,-430.0,0.00016867,2]
[363760001,1748863838437,-484.96,0.00016867,2]
[363760003,1748863838446,-294.97054936,0.00016867,2]
[363760005,1748863838455,-370.81126325,0.00016867,2]
[363760007,1748863838465,-397.9534046,0.00016867,2]
[363760009,1748863838474,-430.0,0.00016867,2]
[363760011,1748863838484,-160.94,0.00016867,2]
[363760013,1748863838494,-430.0,0.00016867,2]
[363760015,1748863838503,-430.0,0.00016867,2]
[363760017,1748863838512,-430.0,0.00016867,2]
[363760019,1748863838521,-430.0,0.00016867,2]
[363760021,1748863838531,-430.0,0.00016867,2]
[363760023,1748863838540,-430.0,0.00016867,2]
[363760026,1748863838550,-366.8424821,0.00016867,2]
[363760028,1748863838560,-450.0,0.00016867,2]
[363760030,1748863838569,-430.0,0.00016867,2]
[363760032,1748863838579,-551.53,0.00016867,2]
[363760034,1748863838589,-430.0,0.00016867,2]
[363760036,1748863838600,-430.0,0.00016867,2]
[363760038,1748863838609,-181.85650223,0.00016867,2]
[363760040,1748863838618,-430.0,0.00016867,2]
[363760042,1748863838628,-430.0,0.00016867,2]
[363760044,1748863838637,-500.0,0.00016912,2]
[363760046,1748863838645,-500.0,0.00016912,2]
[363760048,1748863838654,-500.0,0.00016912,2]
[363760050,1748863838663,-500.0,0.00016912,2]
[363760052,1748863838673,-500.0,0.00016925,2]
[363760054,1748863838682,-501.89179774,0.00016926,2]
[363760056,1748863838691,-500.0,0.00016926,2]
[363760058,1748863838701,-500.0,0.00016926,2]
[363760060,1748863838710,-500.0,0.00016926,2]
[363760062,1748863838719,-500.0,0.00016926,2]
[363760064,1748863838728,-500.0,0.00016926,2]
[363760066,1748863838737,-501.49495753,0.00017008,2]
[363760068,1748863838747,-506.04841963,0.00017008,2]
[363760070,1748863838756,-1226.69,0.0001704,2]
[363760072,1748863838765,-500.0,0.00017052,2]
[363760074,1748863838775,-500.0,0.00017052,2]
[363760076,1748863838784,-500.0,0.00017075,2]
[363760078,1748863838794,-588.71483833,0.00017137,2]
[363760080,1748863838803,-488.85,0.00017139,2]
[363760082,1748863838812,-430.0,0.00017139,2]
[363760084,1748863838823,-213.84765016,0.00017139,2]
[363760086,1748863838833,-578.34,0.00017139,2]
[363760088,1748863838842,-430.0,0.00017139,2]
[363760090,1748863838851,-762.41,0.00017139,2]
[363760092,1748863838861,-437.83798343,0.00017139,2]
[363760094,1748863838871,-430.0,0.00017139,2]
[363760096,1748863838880,-499.96895281,0.00017139,2]
[363760098,1748863838890,-592.12,0.00017139,2]
[363760100,1748863838899,-430.0,0.00017139,2]
[363760102,1748863838908,-2995.47,0.00017139,2]
[363760104,1748863838918,-1547.43,0.00017139,2]
[363760106,1748863838927,-530.15385059,0.00017139,2]
[363760108,1748863838938,-1137.03,0.00017139,2]
[363760111,1748863838948,-509.85,0.00017139,2]
[363760113,1748863838958,-1121.13,0.00017139,2]
[363760115,1748863838968,-1737.15,0.00017139,2]
[363760117,1748863838978,-430.0,0.0001714,2]
[363760118,1748863838987,-430.0,0.0001714,2]
[363760119,1748863838998,-442.57542213,0.0001714,2]
[363760120,1748863839008,-430.0,0.0001714,2]
[363760121,1748863839018,-438.17399433,0.0001714,2]
[363760122,1748863839028,-346.77002132,0.0001714,2]